bitfinex/quotes_ETHUSD_20241216
["timestamp","ask_amount","ask_price","bid_price","bid_amount"]
[1734386606654,0.29568076,4046.8,4046.0,0.8106]
[1734386606816,0.8131,4047.1,4046.3,3.0]
[1734386607018,0.29567713,4047.0,4046.3,3.0]
[1734386607216,0.29567713,4046.9,4046.1,5.10550652]
[1734386607415,0.8131,4047.1,4046.2,3.84220261]
[1734386607645,0.2956635,4047.0,4046.2,0.84220261]
[1734386607975,0.2956635,4046.9,4046.2,0.84220261]
[1734386608254,0.8131,4047.1,4046.2,0.84220261]
[1734386608455,0.29566372,4047.0,4046.2,0.84220261]
[1734386608608,0.8131,4047.1,4046.2,0.84220261]
[1734386608609,0.29566372,4046.9,4046.2,5.10550652]
[1734386608807,0.8131,4047.1,4046.2,5.10550652]
[1734386609008,0.29565202,4047.0,4046.2,5.10550652]
[1734386609221,0.29565202,4046.9,4046.1,1.02522152]
[1734386609441,0.8131,4047.1,4046.1,1.02522152]
[1734386609641,0.29564234,4047.0,4046.1,1.02522152]
[1734386609840,0.29564234,4046.9,4046.1,1.02522152]
[1734386610041,0.8131,4047.1,4046.1,1.02522152]
[1734386610364,0.29564187,4047.0,4046.3,0.7982]
[1734386610565,0.168438,4047.2,4046.4,0.27862623]
[1734386610857,0.168438,4047.2,4046.5,0.7982]
[1734386611072,0.168438,4047.2,4046.5,1.36352107]
[1734386613313,0.168438,4047.2,4046.5,1.38822762]
[1734386613568,0.168438,4047.2,4046.6,3.69575924]
[1734386613769,0.168438,4047.2,4046.7,3.0]
[1734386613978,0.168438,4047.2,4046.8,0.7982]
[1734386618068,0.168438,4047.2,4046.6,1.31191636]
[1734386618275,0.7904,4047.1,4046.6,1.02522152]
[1734386618576,0.7904,4047.1,4046.5,0.7982]
[1734386618715,0.7904,4047.1,4046.6,2.10247515]
[1734386618921,0.7904,4047.1,4046.7,0.84099006]
[1734386619315,0.7904,4047.1,4046.5,0.7982]
[1734386619634,0.7904,4047.1,4046.6,5.1022933]
[1734386619853,0.7904,4047.1,4046.5,3.7982]
[1734386620173,0.7904,4047.1,4046.6,0.84088751]
[1734386621279,0.7904,4047.1,4045.9,1.15101596]
[1734386621479,0.7904,4047.1,4046.0,2.1028089]
[1734386621817,0.7904,4047.1,4045.8,2.11011636]
[1734386621818,0.7904,4047.1,4046.1,0.84112356]
[1734386622024,0.7904,4047.1,4045.8,2.23495716]
[1734386622226,0.7904,4047.1,4045.9,2.1027822]
[1734386622529,0.7904,4047.1,4045.8,2.23495716]
[1734386622530,0.7904,4047.1,4046.0,5.1027822]
[1734386622755,0.7904,4047.1,4046.1,0.84111288]
[1734386623121,0.91579859,4047.1,4045.8,1.31191636]
[1734386623279,0.29514789,4047.0,4045.9,2.10315138]
[1734386623490,0.29514789,4047.0,4045.8,0.28669484]
[1734386623491,0.7904,4046.9,4046.0,0.84126055]
[1734386623786,0.7904,4046.9,4045.8,0.28669484]
[1734386624081,0.7904,4046.9,4045.9,2.10310307]
[1734386624230,0.7904,4046.9,4045.8,0.28669484]
[1734386624431,0.7904,4046.8,4045.9,2.10317185]
[1734386624663,0.7904,4046.8,4045.8,3.28669484]
[1734386624664,0.7904,4046.8,4045.8,0.28669484]
[1734386624877,0.7904,4046.8,4045.7,0.27862623]
[1734386625082,0.7904,4046.8,4045.8,0.84132826]
[1734386625432,0.7904,4046.7,4045.8,0.84132826]
[1734386625633,1.08554789,4046.7,4045.8,0.84132826]
[1734386625860,0.7904,4046.7,4045.8,0.84132826]
[1734386628137,0.2953403,4046.6,4045.3,1.02522152]
[1734386628339,1.03446602,4047.0,4045.1,1.02522152]
[1734386628340,0.7904,4046.4,4045.1,1.02522152]
[1734386628588,1.03446602,4046.8,4045.2,3.0]
[1734386628589,0.7904,4046.2,4045.2,3.0]
[1734386628738,0.7904,4046.1,4044.9,4.02522152]
[1734386629083,0.7904,4046.1,4045.0,2.10204291]
[1734386629300,0.7904,4046.1,4045.1,2.10204291]
[1734386629433,0.7904,4046.1,4045.2,0.84081716]
[1734386629631,0.7904,4046.1,4044.9,3.56532107]
[1734386629934,0.7904,4046.1,4045.0,2.10204837]
[1734386630133,0.7904,4046.1,4044.9,0.56532107]
[1734386630377,0.7904,4046.1,4045.0,0.84086595]
[1734386630945,0.7904,4046.1,4044.9,0.56532107]
[1734386631157,0.7904,4045.9,4044.3,1.02522152]
[1734386631345,0.7904,4045.7,4044.4,2.10240406]
[1734386631539,0.7904,4045.6,4044.0,1.02522152]
[1734386631756,0.7904,4045.6,4044.0,0.56532107]
[1734386631988,0.7904,4045.6,4044.1,0.56532107]
[1734386632280,0.7904,4045.6,4044.2,0.8406483]
[1734386632481,0.7904,4045.6,4044.1,0.56532107]
[1734386633886,0.7904,4045.6,4044.1,0.27862623]
[1734386636392,0.7904,4045.6,4043.9,0.7982]
[1734386636888,0.7904,4045.6,4043.7,3.56532107]
[1734386637058,0.7904,4045.6,4043.8,3.8396962]
[1734386637240,0.7904,4045.6,4043.7,0.56532107]
[1734386637436,0.7904,4045.6,4043.4,3.0]
[1734386637674,0.7904,4045.6,4043.5,2.0995172]
[1734386637889,0.7904,4045.6,4043.4,3.27862623]
[1734386638465,0.18384972,4045.5,4043.4,3.27862623]
[1734386638679,0.29433766,4046.1,4043.4,3.27862623]
[1734386638680,0.94394972,4045.4,4043.5,0.27862623]
[1734386638857,0.18384972,4045.3,4043.5,0.27862623]
[1734386639053,0.7601,4045.2,4043.6,0.28669484]
[1734386639371,0.7601,4045.2,4043.7,0.27862623]
[1734386639755,0.7601,4045.2,4043.9,0.8078]
[1734386640099,0.7601,4045.2,4044.0,1.14004124]
[1734386640417,0.7601,4045.2,4044.2,0.55]
[1734386640557,0.7601,4045.2,4044.3,0.27862623]
[1734386640762,0.7601,4045.2,4044.3,1.11749413]
[1734386640987,0.88284693,4046.9,4044.4,1.38251867]
[1734386641189,0.7601,4046.7,4044.6,0.55]
[1734386641355,0.7601,4046.7,4044.7,1.42874104]
[1734386641556,0.7601,4046.7,4044.7,0.59003618]
[1734386641956,0.7601,4046.7,4044.9,0.55]
[1734386642159,0.7601,4046.7,4045.7,0.8078]
[1734386642951,0.7601,4046.7,4045.0,3.59003296]
[1734386643156,0.7601,4046.7,4045.2,0.8117]
[1734386643355,0.7601,4046.7,4045.2,0.83641203]
[1734386643664,0.7601,4046.7,4045.2,1.11503826]
[1734386644400,0.7601,4046.7,4045.3,0.27862623]
[1734386644704,0.7601,4046.7,4045.4,0.57471203]
[1734386645071,0.7601,4046.7,4045.5,0.56532107]
[1734386645381,0.7601,4046.7,4045.6,0.02471066]
[1734386646380,0.7601,4046.7,4046.4,3.0]
[1734386646810,0.7601,4046.7,4045.6,0.02471066]
[1734386647016,0.7601,4046.7,4045.4,0.02471069]
[1734386649097,0.7601,4046.7,4045.3,0.70103406]
[1734386651300,0.7601,4046.7,4045.3,0.67632304]
[1734386651893,0.7601,4046.7,4045.3,0.70103418]
[1734386652492,0.7601,4046.7,4045.3,0.67632304]
[1734386652694,0.7601,4046.7,4045.3,0.70103414]
[1734386653901,0.7601,4046.7,4045.3,0.67632304]
[1734386654153,0.7601,4046.7,4045.3,0.70103421]
[1734386654827,0.7601,4046.7,4045.3,0.70103452]
[1734386655347,0.7601,4046.7,4045.3,0.67632304]
[1734386655841,0.7601,4046.7,4046.0,3.0]
[1734386656205,0.7601,4046.7,4045.3,0.69164411]
[1734386656452,0.7601,4046.7,4045.4,0.28669484]
[1734386656853,0.7601,4046.7,4045.3,0.40494927]
[1734386660348,0.7601,4046.7,4045.3,0.27862623]
[1734386663231,0.7601,4046.7,4044.9,0.28669484]
[1734386663431,0.7601,4046.7,4045.0,5.37389509]
[1734386663624,0.7601,4046.7,4045.1,5.09526886]
[1734386663828,0.7601,4046.7,4045.2,1.14144744]
[1734386664014,0.7601,4046.7,4045.2,0.59003474]
[1734386664216,0.7601,4046.7,4045.2,0.56532107]
[1734386664462,0.7601,4046.7,4045.8,3.0]
[1734386664675,0.7601,4046.7,4045.2,0.56532107]
[1734386665542,0.7601,4046.7,4045.3,0.83843003]
[1734386666832,0.7601,4046.7,4045.1,3.0]
[1734386667065,0.7601,4046.7,4044.8,1.02030829]
[1734386667250,0.29457023,4046.6,4044.8,2.09849163]
[1734386667464,0.7931,4046.5,4044.8,2.09849163]
[1734386667659,1.22216255,4047.2,4044.9,3.0]
[1734386667660,0.7931,4046.4,4044.9,3.0]
[1734386667943,0.7931,4046.4,4044.7,0.12455351]
[1734386668183,0.7931,4046.4,4044.8,2.09901046]
[1734386668351,1.02935997,4047.1,4044.9,0.83977765]
[1734386668352,0.29457023,4046.3,4044.9,0.83977765]
[1734386668558,0.8113,4046.2,4044.6,1.02030829]
[1734386668756,0.8113,4046.2,4044.7,3.0]
[1734386668953,0.8113,4046.2,4044.8,0.83995292]
[1734386669306,0.8113,4046.2,4044.6,1.02030829]
[1734386669443,0.7716,4046.0,4044.6,3.12015622]
[1734386669795,0.7716,4046.0,4044.7,3.0]
[1734386670084,0.7716,4046.0,4044.8,0.83993917]
[1734386670486,0.7716,4046.0,4044.6,4.02030829]
[1734386670691,0.7716,4046.0,4044.7,5.0998482]
[1734386670896,0.7716,4046.0,4044.8,0.83993928]
[1734386671100,0.7716,4046.0,4044.6,4.02030829]
[1734386671244,0.7716,4046.0,4044.7,5.09983893]
[1734386671448,0.7716,4046.0,4044.8,0.83993557]
[1734386671647,0.7716,4046.0,4044.6,1.02030829]
[1734386671978,0.8088,4045.8,4044.6,6.11998606]
[1734386672187,0.8088,4045.8,4044.7,5.09967777]
[1734386672492,0.8088,4045.8,4044.8,0.83987111]
[1734386672691,0.29556761,4046.6,4045.3,0.7502]
[1734386672857,0.29556761,4047.1,4045.6,0.55]
[1734386673063,0.168438,4047.2,4045.8,4.02030829]
[1734386673369,0.168438,4047.2,4045.9,6.70811523]
[1734386673576,0.168438,4047.2,4046.0,5.09777648]
[1734386673874,0.168438,4047.2,4046.1,5.1224845]
[1734386674081,0.168438,4047.2,4046.2,0.83911059]
[1734386674647,0.168438,4047.2,4046.0,0.12270042]
[1734386674850,0.168438,4047.2,4045.7,1.04501714]
[1734386675047,0.168438,4047.2,4045.8,0.83884265]
[1734386675253,0.168438,4047.2,4045.9,0.83884265]
[1734386675574,0.815,4047.1,4045.9,0.83884265]
[1734386675819,0.815,4047.1,4045.7,0.1261573]
[1734386676079,0.815,4047.1,4045.8,5.09652631]
[1734386676288,0.815,4047.1,4045.9,0.83861052]
[1734386676598,0.815,4047.1,4045.6,5.47349359]
[1734386676746,0.815,4047.1,4045.7,5.09563763]
[1734386676946,0.815,4047.1,4045.8,5.09563763]
[1734386677293,0.815,4047.1,4045.9,0.83825505]
[1734386677462,0.815,4047.1,4045.6,5.47349359]
[1734386677659,0.815,4047.1,4045.7,2.09526163]
[1734386677858,0.815,4047.1,4045.8,2.09526163]
[1734386678064,0.815,4047.1,4045.8,3.0]
[1734386678261,0.815,4047.1,4045.6,5.47349359]
[1734386678595,0.815,4047.1,4045.7,5.0946687]
[1734386678903,0.815,4047.1,4045.8,5.0946687]
[1734386679047,0.815,4047.1,4045.9,0.83786748]
[1734386679253,0.815,4047.1,4045.4,1.53046244]
[1734386679254,0.94287038,4047.1,4045.4,1.02030829]
[1734386679467,0.29526584,4047.0,4045.2,1.02030829]
[1734386679712,0.168438,4047.2,4045.2,5.09568251]
[1734386679713,0.29526584,4046.9,4045.2,5.09568251]
[1734386679919,0.7985,4046.8,4045.3,5.09568251]
[1734386680112,0.7985,4046.8,4045.1,1.02030829]
[1734386680113,0.7985,4046.8,4045.4,0.838273]
[1734386680314,0.7985,4046.8,4045.1,1.02030829]
[1734386680315,0.7985,4046.8,4045.2,0.55]
[1734386680518,0.7985,4046.8,4045.2,5.40913501]
[1734386680722,0.7985,4046.8,4045.4,3.0]
[1734386680936,0.7985,4046.8,4045.5,0.83882672]
[1734386681141,0.7985,4046.8,4045.3,0.02471251]
[1734386681353,0.7985,4046.8,4045.4,3.0]
[1734386681648,0.7985,4046.8,4045.5,2.09751212]
[1734386681801,0.7985,4046.8,4045.3,1.02030829]
[1734386682006,0.7985,4046.8,4045.1,1.78311162]
[1734386682007,0.7985,4046.8,4045.4,2.09801257]
[1734386682351,0.7985,4046.8,4045.2,1.02030829]
[1734386682516,0.7792,4046.7,4045.2,3.11913161]
[1734386682721,0.7792,4046.7,4045.3,2.09882332]
[1734386682898,0.7792,4046.7,4045.4,2.09882332]
[1734386683233,0.7792,4046.7,4045.2,1.02030829]
[1734386683446,0.7792,4046.7,4045.3,3.0]
[1734386683754,0.7792,4046.7,4045.4,2.09891928]
[1734386684624,0.7792,4046.7,4045.5,3.0]
[1734386684828,0.7792,4046.7,4045.6,0.83956967]
[1734386685161,0.29525274,4046.6,4045.2,4.02030829]
[1734386685366,0.7959,4046.5,4045.3,5.10119652]
[1734386685566,1.09115274,4046.5,4045.4,5.10119652]
[1734386685881,0.7959,4046.4,4045.5,0.84047861]
[1734386686018,0.7959,4046.4,4045.3,1.02030829]
[1734386686217,0.7959,4046.4,4045.4,3.0]
[1734386686448,0.7959,4046.4,4045.5,0.84104914]
[1734386686628,0.7959,4046.4,4045.3,1.02030829]
[1734386686850,0.7959,4046.4,4045.4,3.0]
[1734386687066,0.7959,4046.4,4045.5,0.8410655]
[1734386687253,0.7959,4046.4,4045.3,1.02030829]
[1734386687563,0.7959,4046.4,4045.4,3.0]
[1734386687765,0.7959,4046.4,4045.5,0.84105275]
[1734386688061,0.7959,4046.4,4045.3,1.02030829]
[1734386688367,0.7959,4046.4,4045.4,3.0]
[1734386688529,0.7959,4046.4,4045.5,0.84085033]
[1734386688949,0.7959,4046.4,4045.2,4.02030829]
[1734386689119,0.7959,4046.4,4045.3,2.10163868]
[1734386689468,0.7959,4046.4,4045.4,2.10163868]
[1734386689619,0.7959,4046.4,4045.5,0.84065547]
[1734386689828,0.7959,4046.4,4045.2,1.02030829]
[1734386690020,0.7959,4046.4,4045.3,3.0]
[1734386690216,0.7959,4046.4,4045.4,2.10118968]
[1734386690416,0.7959,4046.4,4045.5,2.10114973]
[1734386690717,0.7959,4046.4,4045.3,1.58562936]
[1734386690939,0.7959,4046.4,4045.4,5.10105632]
[1734386691133,0.7959,4046.4,4045.5,0.84042253]
[1734386691382,0.7959,4046.4,4045.3,1.58562936]
[1734386691700,0.7959,4046.4,4045.4,5.1007853]
[1734386691845,0.7959,4046.4,4045.5,0.84031412]
[1734386692193,0.7959,4046.4,4045.4,0.56532107]
[1734386692401,0.7959,4046.4,4045.5,0.84011394]
[1734386696687,0.7959,4046.4,4045.4,0.27862623]
[1734386696990,0.7959,4046.4,4045.5,2.10015179]
[1734386697172,0.7959,4046.4,4045.4,0.27862623]
[1734386697378,0.7959,4046.4,4045.5,2.10001077]
[1734386697683,0.7959,4046.4,4045.6,0.84000431]
[1734386697841,0.7959,4046.4,4045.4,0.27862623]
[1734386698043,0.7959,4046.4,4045.5,2.0999889]
[1734386698402,0.7959,4046.4,4045.6,0.83999556]
[1734386698689,0.7959,4046.4,4045.4,0.27862623]
[1734386698888,0.7959,4046.4,4045.5,2.1000146]
[1734386699105,0.7959,4046.4,4045.6,0.84000584]
[1734386699241,0.7959,4046.4,4045.4,0.27862623]
[1734386699441,0.7959,4046.4,4045.5,2.10090808]
[1734386699752,0.7959,4046.4,4045.6,0.84036323]
[1734386699988,0.7959,4046.4,4045.4,0.27862623]
[1734386700299,0.7959,4046.4,4045.5,2.10112901]
[1734386700478,0.7959,4046.4,4045.6,0.8404516]
[1734386700820,0.7959,4046.4,4045.4,0.27862623]
[1734386700950,0.7959,4046.4,4045.5,2.10108361]
[1734386701152,0.18453862,4046.3,4045.6,0.84043344]
[1734386701372,0.95953862,4046.2,4045.4,0.27862623]
[1734386701701,1.02935997,4046.9,4045.3,1.02030829]
[1734386701702,0.783,4046.1,4045.5,1.26073545]
[1734386701863,0.96755219,4046.1,4045.2,1.02030829]
[1734386702088,0.29522906,4046.6,4045.3,3.0]
[1734386702400,1.02935997,4046.7,4045.4,0.8405605]
[1734386702401,0.783,4045.9,4045.4,0.8405605]
[1734386702607,0.783,4045.9,4045.1,1.02030829]
[1734386702909,0.783,4045.9,4045.2,3.0]
[1734386703052,0.783,4045.9,4045.3,2.10141023]
[1734386703711,0.783,4045.9,4045.1,1.02030829]
[1734386704000,0.783,4045.9,4045.2,3.0]
[1734386704150,0.783,4045.9,4045.3,0.84053843]
[1734386704347,0.783,4045.9,4045.1,1.02030829]
[1734386704627,0.783,4045.9,4045.2,3.0]
[1734386704908,0.783,4045.9,4045.3,0.84044414]
[1734386705197,0.783,4045.9,4045.1,1.02030829]
[1734386705402,0.783,4045.9,4045.1,0.84042963]
[1734386705701,0.18469912,4045.8,4044.8,4.02030829]
[1734386705901,0.99099912,4045.7,4044.9,5.10155186]
[1734386706218,0.99099912,4045.6,4045.0,3.84062074]
[1734386706353,0.99099912,4045.6,4045.1,2.1015143]
[1734386706354,0.8063,4045.6,4045.1,2.1015143]
[1734386706555,0.8063,4045.6,4044.9,1.02030829]
[1734386706816,0.8063,4045.6,4045.0,3.0]
[1734386706971,0.8063,4045.6,4045.1,2.10119123]
[1734386707153,0.8063,4045.6,4044.9,1.02030829]
[1734386707356,0.8063,4045.6,4045.0,3.0]
[1734386707556,0.8063,4045.6,4045.1,2.10118205]
[1734386707793,0.8063,4045.6,4044.9,1.02030829]
[1734386707952,0.8063,4045.6,4044.9,3.12155925]
[1734386708151,0.8063,4045.6,4045.0,3.0]
[1734386708453,0.8063,4045.6,4045.1,2.10125096]
[1734386708766,0.1847994,4045.5,4044.7,1.02030829]
[1734386708967,0.8063,4045.6,4044.9,1.02030829]
[1734386709165,0.7859,4045.4,4045.0,0.84058478]
[1734386709368,0.7859,4045.4,4045.1,2.10173814]
[1734386709567,0.7859,4045.4,4044.9,1.02030829]
[1734386709786,0.7859,4045.4,4045.0,3.0]
[1734386709991,0.7859,4045.4,4045.1,0.8407745]
[1734386710228,0.7859,4045.4,4044.8,1.02030829]
[1734386710440,0.7859,4045.4,4044.8,2.10190696]
[1734386710727,0.7859,4045.4,4044.8,6.12221525]
[1734386710879,0.7859,4045.4,4044.9,5.10190696]
[1734386711074,0.7859,4045.4,4045.0,0.84076278]
[1734386711301,0.7859,4045.4,4044.7,4.02030829]
[1734386711621,0.7859,4045.4,4044.8,5.10181316]
[1734386711787,0.7859,4045.4,4044.9,2.10181316]
[1734386711991,0.18485786,4045.3,4044.4,1.02030829]
[1734386712306,1.02935997,4046.1,4044.2,1.02030829]
[1734386712307,0.798,4045.1,4044.2,1.02030829]
[1734386712517,2.05871994,4046.2,4044.3,0.84081416]
[1734386712518,0.18485786,4045.0,4044.3,0.84081416]
[1734386712675,1.02935997,4045.8,4044.0,1.02030829]
[1734386712676,0.98285786,4044.9,4044.0,1.02030829]
[1734386712877,1.02935997,4045.8,4044.0,1.02030829]
[1734386712878,0.98277892,4044.8,4044.0,3.12252152]
[1734386713201,0.98277892,4044.8,4044.1,2.10221323]
[1734386713202,0.798,4044.8,4044.1,2.10221323]
[1734386713430,0.798,4044.8,4043.9,1.29893452]
[1734386713627,0.798,4044.8,4044.0,5.10165173]
[1734386713782,0.798,4044.8,4044.1,5.10165173]
[1734386713982,0.798,4044.8,4043.9,1.29893452]
[1734386713983,0.798,4044.8,4043.9,0.27862623]
[1734386714209,0.798,4044.8,4044.0,2.101684]
[1734386714382,0.798,4044.8,4043.9,0.27862623]
[1734386714597,0.798,4044.8,4044.0,2.1012248]
[1734386715288,0.798,4044.8,4044.0,0.84048992]
[1734386715930,0.798,4044.8,4043.9,0.27862623]
[1734386716626,0.798,4044.8,4043.6,1.02030829]
[1734386716822,0.798,4044.8,4043.7,3.0]
[1734386717021,0.798,4044.8,4043.8,2.10097423]
[1734386717248,0.798,4044.8,4043.7,0.27862623]
[1734386717451,0.798,4044.8,4043.8,0.84031651]
[1734386717823,0.798,4044.8,4043.4,0.28669484]
[1734386718023,0.8208,4044.6,4043.4,3.40756705]
[1734386718221,0.8208,4044.6,4043.5,2.10056392]
[1734386718423,0.8208,4044.6,4043.6,0.84043194]
[1734386718673,0.8208,4044.6,4043.4,0.28669484]
[1734386718813,0.8208,4044.6,4043.5,0.84031164]
[1734386719016,0.8208,4044.6,4043.3,2.33954759]
[1734386719017,0.7803,4044.4,4043.3,2.33954759]
[1734386719216,0.18443579,4044.3,4043.3,2.33954759]
[1734386719427,0.7803,4044.2,4043.3,2.33954759]
[1734386723214,0.7803,4044.2,4043.4,3.28669484]
[1734386723414,0.7803,4044.2,4043.4,3.56532107]
[1734386729646,0.7803,4044.2,4043.4,3.28669484]
[1734386730884,0.7803,4044.2,4043.4,3.56532107]
[1734386731981,0.7803,4044.2,4043.4,3.28669484]
[1734386733785,0.7803,4044.2,4043.3,5.46423913]
[1734386733965,0.7803,4044.2,4043.4,5.1011726]
[1734386734167,0.7803,4044.2,4043.3,5.46423913]
[1734386734366,0.7803,4044.2,4043.4,5.10101336]
[1734386734584,0.7803,4044.2,4043.4,3.0]
[1734386734753,0.7803,4044.2,4043.3,5.46423913]
[1734386734956,0.7803,4044.2,4043.4,3.84048287]
[1734386735184,0.7803,4044.2,4043.3,5.46423913]
[1734386735389,0.7803,4044.2,4043.4,3.84047839]
[1734386735688,0.7803,4044.2,4043.3,5.46423913]
[1734386735839,0.7803,4044.2,4043.4,3.84051177]
[1734386736069,0.7803,4044.2,4043.3,5.46423913]
[1734386736270,0.7803,4044.2,4043.4,3.84051025]
[1734386736516,0.7803,4044.2,4043.4,3.0]
[1734386736671,0.7803,4044.2,4043.3,5.46423913]
[1734386736876,0.7803,4044.2,4043.4,5.10085013]
[1734386737076,0.7803,4044.2,4043.3,5.46423913]
[1734386737325,0.7803,4044.2,4043.4,5.10078642]
[1734386737473,0.7803,4044.2,4043.4,3.0]
[1734386737673,0.7803,4044.2,4043.5,0.84028442]
[1734386738296,0.7803,4044.2,4043.3,5.46423913]
[1734386738498,0.7803,4044.2,4043.4,5.10084553]
[1734386738712,0.7803,4044.2,4043.5,3.84033821]
[1734386738922,0.7803,4044.2,4043.3,5.46423913]
[1734386739092,0.7803,4044.2,4043.4,5.10130772]
[1734386739286,0.7803,4044.2,4043.5,3.84052309]
[1734386739487,0.7803,4044.2,4043.4,3.0]
[1734386739827,0.7803,4044.2,4043.5,2.10172458]
[1734386740598,0.7803,4044.2,4043.3,3.48454742]
[1734386740599,0.7803,4044.2,4043.3,5.46423913]
[1734386740806,0.7803,4044.2,4043.4,5.10217818]
[1734386741102,0.7803,4044.2,4043.5,0.84087127]
[1734386742304,0.7803,4044.2,4043.4,3.0]
[1734386742502,0.7803,4044.2,4043.5,5.12651651]
[1734386742698,0.7803,4044.2,4043.6,0.84071409]
[1734386743464,0.7803,4044.2,4043.5,3.12255544]
[1734386743613,0.7803,4044.2,4043.6,2.10215957]
[1734386743815,0.7803,4044.2,4043.7,3.84071409]
[1734386744016,0.7803,4044.2,4043.5,1.02030829]
[1734386744310,0.7803,4044.2,4043.6,3.0]
[1734386744538,0.7803,4044.2,4043.7,2.10236955]
[1734386745139,0.7803,4044.2,4043.4,4.02030829]
[1734386745342,0.7803,4044.2,4043.6,3.0]
[1734386745512,0.7803,4044.2,4043.7,0.84108328]
[1734386745718,0.7803,4044.2,4043.5,1.02030829]
[1734386745927,0.7803,4044.2,4043.6,3.0]
[1734386746100,0.7803,4044.2,4043.4,3.0]
[1734386746101,0.7803,4044.2,4043.7,0.84115135]
[1734386746303,0.7803,4044.2,4043.5,1.02030829]
[1734386746525,0.7803,4044.2,4043.6,3.0]
[1734386746739,0.7803,4044.2,4043.7,2.10295172]
[1734386746921,0.7803,4044.2,4043.8,0.84120445]
[1734386747103,0.7803,4044.2,4043.5,1.02030829]
[1734386747302,0.7803,4044.2,4043.5,2.10283205]
[1734386747505,0.7803,4044.2,4043.6,2.10283205]
[1734386747816,0.7803,4044.2,4043.7,2.10294256]
[1734386748022,0.7803,4044.2,4043.5,1.02030829]
[1734386748206,0.7803,4044.2,4043.6,3.0]
[1734386748567,0.7803,4044.2,4043.7,2.10294565]
[1734386751455,0.7803,4044.2,4043.8,3.0]
[1734386751661,0.7803,4044.2,4043.9,0.84117826]
[1734386751955,0.7803,4044.2,4043.3,5.46423913]
[1734386752672,0.7803,4044.2,4043.7,1.02533858]
[1734386752831,0.7803,4044.2,4043.8,3.13109218]
[1734386753031,0.7803,4044.2,4043.9,2.1057536]
[1734386753232,0.7803,4044.2,4043.9,0.84230144]
[1734386753528,0.7803,4044.2,4044.0,0.84257972]
[1734386753844,0.7803,4044.2,4043.8,1.02533858]
[1734386754023,0.7803,4044.2,4043.9,2.10667122]
[1734386755841,0.7803,4044.2,4044.0,3.0]
[1734386756073,0.7803,4044.2,4044.1,0.84266849]
[1734386756286,0.7803,4044.2,4043.9,3.0]
[1734386756451,0.7803,4044.2,4044.0,2.10888818]
[1734386757048,0.7803,4044.2,4044.1,2.10926485]
[1734386758637,0.7803,4044.2,4044.1,6.13460343]
[1734386759241,0.7803,4044.2,4044.1,5.10926485]
[1734386760379,0.7803,4044.2,4044.1,6.13460343]
[1734386760947,0.7803,4044.2,4044.1,3.13600684]
[1734386761160,0.7803,4044.2,4044.1,6.13600684]
[1734386762101,0.7803,4044.2,4044.1,3.13600684]
[1734386762400,0.7803,4044.2,4044.1,1.02533858]
[1734386762589,0.7803,4044.2,4044.1,1.86960588]
[1734386762788,0.7803,4044.2,4044.1,3.13600684]
[1734386763288,0.7803,4044.2,4044.1,1.02533858]
[1734386763487,0.7803,4044.2,4044.1,1.86960588]
[1734386763693,0.7803,4044.2,4044.1,3.13600684]
[1734386764648,0.7803,4044.2,4044.1,0.8442673]
[1734386764853,0.7803,4044.2,4043.6,1.02533858]
[1734386765290,0.7803,4044.2,4043.7,2.11165118]
[1734386765600,0.29609058,4044.1,4043.8,0.84466047]
[1734386765906,0.8255,4044.0,4043.6,1.02533858]
[1734386766286,0.8255,4044.0,4043.6,2.1117091]
[1734386766585,0.8255,4044.0,4043.7,2.1117091]
[1734386766799,0.8255,4044.0,4043.4,4.02533858]
[1734386766985,0.8255,4044.0,4043.5,5.1005033]
[1734386767176,0.8255,4044.0,4043.6,2.1005033]
[1734386768888,0.8255,4044.0,4043.4,3.0]
[1734386768889,0.2958489,4043.9,4043.4,3.0]
[1734386769092,0.29586623,4043.8,4043.3,2.33954759]
[1734386769289,1.03353991,4044.2,4043.3,2.33954759]
[1734386769290,0.7951,4043.7,4043.3,2.33954759]
[1734386770016,0.7802,4043.6,4043.3,2.33954759]
[1734386771920,0.7782,4043.4,4043.3,2.33954759]
[1734386772081,1.07384209,4043.4,4043.3,2.33954759]
[1734386772432,0.7782,4043.4,4043.3,2.33954759]
[1734386773180,1.63356823,4043.4,4043.3,2.33954759]
[1734386773381,1.07447502,4043.4,4043.3,2.33954759]
[1734386774442,0.7782,4043.4,4043.3,2.33954759]
[1734386776231,0.7782,4043.4,4043.3,2.33954759]
[1734386782239,1.3282,4043.4,4043.3,2.33954759]
[1734386782461,1.3282,4043.4,4043.3,2.08365957]
[1734386782739,2.18109714,4043.4,4043.3,2.08365957]
[1734386783135,3.46047241,4043.4,4043.3,2.08365957]
[1734386783339,4.08990463,4043.4,4043.3,2.08365957]
[1734386783645,2.81052936,4043.4,4043.3,2.08365957]
[1734386784059,2.81024289,4043.4,4043.3,2.08365957]
[1734386784271,1.95763222,4043.4,4043.3,2.08365957]
[1734386784474,1.3282,4043.4,4043.3,2.08365957]
[1734386785981,0.7782,4043.4,4043.3,2.08365957]
[1734386792077,0.8174,4044.0,4043.3,2.08365957]
[1734386793625,0.8174,4044.0,4043.3,5.38245181]
[1734386793786,0.8174,4044.0,4043.3,5.08365957]
[1734386793991,0.8174,4044.0,4043.3,2.08365957]
[1734386794434,1.06163049,4044.4,4043.3,2.08365957]
[1734386794577,0.7669,4044.4,4043.3,2.08365957]
[1734386796416,0.29511429,4044.3,4043.3,2.08365957]
[1734386796728,1.03353991,4044.9,4043.3,2.08365957]
[1734386796729,1.09021429,4044.2,4043.3,2.08365957]
[1734386796890,0.29511429,4044.1,4043.3,2.08365957]
[1734386797392,0.7951,4043.9,4043.3,2.08365957]
[1734386797588,1.09021429,4043.9,4043.3,2.08365957]
[1734386797792,0.29511429,4043.8,4043.3,2.08365957]
[1734386798192,0.29534385,4043.7,4043.3,2.08365957]
[1734386798408,0.29534385,4043.8,4043.3,2.08365957]
[1734386798608,0.29534385,4043.7,4043.3,2.08365957]
[1734386798822,0.29534385,4043.8,4043.3,2.08365957]
[1734386799025,0.29534385,4043.7,4043.3,2.08365957]
[1734386799226,0.29534385,4043.6,4043.3,2.08365957]